bitfinex/quotes_BTCUSD_20250927
["timestamp","ask_amount","ask_price","bid_price","bid_amount"]
[1758939920254,5.1621223,109640.0,109630.0,0.06823539]
[1758939920706,4.8755223,109640.0,109630.0,0.06823539]
[1758939920946,5.1621223,109640.0,109630.0,0.06823539]
[1758939922008,4.8755223,109640.0,109630.0,0.06823539]
[1758939922210,5.1621223,109640.0,109630.0,0.06823539]
[1758939922608,4.8755223,109640.0,109630.0,0.06823539]
[1758939922804,5.1621223,109640.0,109630.0,0.06823539]
[1758939923361,4.94505524,109640.0,109630.0,0.06823539]
[1758939924754,4.93864771,109640.0,109630.0,0.06823539]
[1758939925068,5.28506465,109640.0,109630.0,0.06823539]
[1758939928439,5.25997765,109640.0,109630.0,0.06823539]
[1758939930437,4.97337765,109640.0,109630.0,0.06823539]
[1758939930641,5.07049559,109640.0,109630.0,0.06823539]
[1758939930848,4.50686375,109640.0,109630.0,0.06823539]
[1758939931052,4.54862332,109640.0,109630.0,0.06823539]
[1758939931263,4.54862332,109640.0,109630.0,0.09568603]
[1758939932570,3.86061853,109640.0,109630.0,0.09568603]
[1758939932748,4.47220433,109640.0,109630.0,0.09568603]
[1758939933504,4.18560433,109640.0,109630.0,0.09568603]
[1758939933705,4.47220433,109640.0,109630.0,0.09568603]
[1758939934225,4.47220433,109640.0,109630.0,0.09067603]
[1758939934427,4.47220433,109640.0,109630.0,0.06322539]
[1758939944158,4.47220197,109640.0,109630.0,0.06322539]
[1758939948140,3.86061617,109640.0,109630.0,0.06832539]
[1758939948344,4.47220197,109640.0,109630.0,0.06322539]
[1758939950130,4.56091344,109640.0,109630.0,0.06322539]
[1758939950510,4.52883601,109640.0,109630.0,0.06322539]
[1758939950737,4.56090725,109640.0,109630.0,0.06322539]
[1758939952491,4.47219578,109640.0,109630.0,0.06322539]
[1758939958016,4.47219578,109640.0,109630.0,0.06832539]
[1758939959067,4.47219578,109640.0,109630.0,0.06529539]
[1758939961925,4.47219578,109640.0,109630.0,0.06322539]
[1758939963354,4.47219578,109640.0,109630.0,0.06832539]
[1758939964000,4.56090725,109640.0,109630.0,0.06832539]
[1758939964440,4.47219578,109640.0,109630.0,0.06832539]
[1758939966427,4.47219357,109640.0,109630.0,0.06832539]
[1758939971501,4.47219222,109640.0,109630.0,0.06832539]
[1758939976428,4.47218871,109640.0,109630.0,0.06832539]
[1758939982287,3.86060291,109640.0,109630.0,0.06832539]
[1758939982471,4.13218871,109640.0,109630.0,0.06322539]
[1758939982891,4.22025459,109640.0,109630.0,0.06322539]
[1758939984468,4.56025459,109640.0,109630.0,0.06322539]
[1758939985145,4.54594566,109640.0,109630.0,0.06322539]
[1758939985781,4.25934566,109640.0,109630.0,0.06322539]
[1758939986001,4.64094566,109640.0,109630.0,0.06322539]
[1758939987665,4.64094566,109640.0,109630.0,0.06295698]
[1758939989567,4.55287978,109640.0,109630.0,0.06295698]
[1758939992554,4.56718909,109640.0,109630.0,0.06295698]
[1758939993828,3.57400329,109640.0,109630.0,0.06295698]
[1758939994027,4.47210909,109640.0,109630.0,0.06295698]
[1758939994709,4.54861799,109640.0,109630.0,0.06295698]
[1758939995269,4.63732946,109640.0,109630.0,0.06295698]
[1758939998389,4.35080946,109640.0,109630.0,0.06295698]
[1758939998539,4.54861799,109640.0,109630.0,0.06507698]
[1758939998722,4.54861799,109640.0,109630.0,0.06807698]
[1758940000483,4.26209799,109640.0,109630.0,0.06807698]
[1758940000794,4.54861799,109640.0,109630.0,0.06807698]
[1758940000940,4.54862067,109640.0,109630.0,0.06807698]
[1758940001565,4.26210067,109640.0,109630.0,0.06807698]
[1758940001784,4.54862067,109640.0,109630.0,0.06807698]
[1758940001981,4.26210067,109640.0,109630.0,0.06807698]
[1758940002326,4.54862067,109640.0,109630.0,0.06807698]
[1758940004520,4.26210067,109640.0,109630.0,0.06807698]
[1758940004720,4.54862067,109640.0,109630.0,0.06807698]
[1758940007476,4.26210067,109640.0,109630.0,0.06807698]
[1758940007893,4.54862067,109640.0,109630.0,0.06807698]
[1758940008513,4.3291587,109640.0,109630.0,0.06807698]
[1758940008784,4.12722658,109640.0,109630.0,0.06807698]
[1758940008993,4.30964175,109640.0,109630.0,0.06807698]
[1758940011476,4.02312175,109640.0,109630.0,0.06807698]
[1758940011729,4.30964175,109640.0,109630.0,0.06807698]
[1758940015941,4.13681932,109640.0,109630.0,0.06807698]
[1758940022321,4.13681932,109640.0,109630.0,0.06507698]
[1758940023046,4.13681932,109640.0,109630.0,0.06295698]
[1758940026468,4.13681932,109640.0,109630.0,0.06808698]
[1758940027919,4.15393618,109640.0,109630.0,0.06808698]
[1758940032342,3.86741618,109640.0,109630.0,0.06808698]
[1758940032527,4.15385618,109640.0,109630.0,0.06808698]
[1758940033458,3.86741618,109640.0,109630.0,0.06808698]
[1758940033602,4.15385618,109640.0,109630.0,0.06808698]
[1758940034829,3.86741618,109640.0,109630.0,0.06808698]
[1758940034954,4.15385618,109640.0,109630.0,0.06808698]
[1758940036296,3.95523617,109640.0,109630.0,0.06808698]
[1758940038286,4.29523617,109640.0,109630.0,0.06808698]
[1758940040491,4.33520466,109640.0,109630.0,0.06808698]
[1758940040708,4.29523617,109640.0,109630.0,0.06808698]
[1758940042615,4.00879617,109640.0,109630.0,0.06808698]
[1758940042817,4.29523617,109640.0,109630.0,0.0955369]
[1758940043567,4.30166069,109640.0,109630.0,0.0955369]
[1758940045872,4.28735138,109640.0,109630.0,0.0955369]
[1758940049212,4.30165996,109640.0,109630.0,0.0955369]
[1758940051353,4.30167586,109640.0,109630.0,0.0955369]
[1758940053386,4.30167586,109640.0,109630.0,0.0904069]
[1758940054392,4.30167482,109640.0,109630.0,0.0904069]
[1758940056330,4.2952503,109640.0,109630.0,0.0904069]
[1758940056648,4.21870482,109640.0,109630.0,0.0904069]
[1758940057628,4.21870482,109640.0,109630.0,0.0924569]
[1758940058303,4.21870482,109640.0,109630.0,0.0955869]
[1758940061543,4.21870482,109640.0,109630.0,0.0904069]
[1758940061748,4.22512507,109640.0,109630.0,0.0904069]
[1758940061997,4.2595851,109640.0,109630.0,0.0904069]
[1758940062983,4.2595851,109640.0,109630.0,0.06295698]
[1758940068691,4.25957554,109640.0,109630.0,0.06295698]
[1758940075179,4.06338754,109640.0,109630.0,0.06295698]
[1758940075865,3.77694754,109640.0,109630.0,0.06295698]
[1758940076075,4.06326754,109640.0,109630.0,0.06295698]
[1758940084581,3.77694754,109640.0,109630.0,0.06295698]
[1758940084750,4.06326754,109640.0,109630.0,0.06295698]
[1758940087742,3.77694754,109640.0,109630.0,0.06295698]
[1758940087944,4.06326754,109640.0,109630.0,0.06819698]
[1758940088142,3.77694754,109640.0,109630.0,0.06819698]
[1758940088323,4.06326754,109640.0,109630.0,0.06819698]
[1758940089646,4.06322754,109640.0,109630.0,0.06819698]
[1758940089841,3.77694754,109640.0,109630.0,0.06819698]
[1758940090567,4.02876751,109640.0,109630.0,0.06819698]
[1758940091833,4.02876864,109640.0,109630.0,0.06819698]
[1758940093488,3.74248864,109640.0,109630.0,0.06819698]
[1758940093773,4.02876864,109640.0,109630.0,0.06819698]
[1758940097667,4.02878002,109640.0,109630.0,0.06819698]
[1758940102039,4.02877989,109640.0,109630.0,0.06819698]
[1758940104653,4.02873989,109640.0,109630.0,0.06819698]
[1758940111708,3.74249989,109640.0,109630.0,0.06819698]
[1758940112138,4.02873989,109640.0,109630.0,0.06819698]
[1758940112361,4.02873989,109640.0,109630.0,0.09564772]
[1758940115141,4.02873818,109640.0,109630.0,0.09564772]
[1758940118770,4.1051606,109640.0,109630.0,0.09564772]
[1758940121780,4.08969174,109640.0,109630.0,0.09564772]
[1758940130176,3.80345174,109640.0,109630.0,0.09564772]
[1758940130399,4.08961174,109640.0,109630.0,0.09564772]
[1758940134538,3.7650806,109640.0,109630.0,0.09564772]
[1758940136414,4.1050806,109640.0,109630.0,0.09564772]
[1758940136635,4.10508412,109640.0,109630.0,0.09564772]
[1758940137963,4.10504412,109640.0,109630.0,0.09564772]
[1758940141065,3.59780712,109640.0,109630.0,0.1138909]
[1758940141263,3.19541512,109640.0,109630.0,0.1138909]
[1758940141677,2.89216936,109640.0,109630.0,0.1138909]
[1758940141883,3.17824936,109640.0,109630.0,0.29632271]
[1758940142104,3.17182327,109640.0,109630.0,0.27807953]
[1758940142293,2.60181027,109640.0,109630.0,0.27807953]
[1758940142531,2.1333151,109640.0,109630.0,0.27807953]
[1758940142739,2.4193951,109640.0,109630.0,0.27807953]
[1758940143142,2.60181027,109640.0,109630.0,0.27807953]
[1758940143895,2.59324739,109640.0,109630.0,0.27807953]
[1758940144101,2.07784351,109640.0,109630.0,0.27807953]
[1758940144317,2.59324739,109640.0,109630.0,0.27807953]
[1758940146141,2.59324739,109640.0,109630.0,0.28107953]
[1758940146707,2.59324739,109640.0,109630.0,0.28207953]
[1758940151605,2.59324739,109640.0,109630.0,0.09964772]
[1758940151752,2.59324739,109640.0,109630.0,0.28207953]
[1758940161081,2.4224473,109640.0,109630.0,0.28207953]
[1758940161294,2.25324693,109640.0,109630.0,0.28207953]
[1758940162671,2.25316693,109640.0,109630.0,0.28207953]
[1758940164804,2.23885881,109640.0,109630.0,0.28207953]
[1758940167862,2.57885881,109640.0,109630.0,0.28207953]
[1758940168091,2.59316703,109640.0,109630.0,0.28207953]
[1758940170774,2.30716703,109640.0,109630.0,0.28207953]
[1758940170971,2.59312703,109640.0,109630.0,0.28207953]
[1758940171217,1.90515539,109640.0,109630.0,0.28207953]
[1758940171422,2.59312703,109640.0,109630.0,0.28207953]
[1758940172499,2.30716703,109640.0,109630.0,0.28207953]
[1758940172704,2.59308703,109640.0,109630.0,0.28207953]
[1758940173354,2.60165582,109640.0,109630.0,0.28207953]
[1758940178942,2.31573582,109640.0,109630.0,0.28207953]
[1758940179169,2.60165582,109640.0,109630.0,0.28207953]
[1758940180679,2.5251057,109640.0,109630.0,0.28207953]
[1758940183290,2.51079748,109640.0,109630.0,0.28207953]
[1758940186358,2.52510566,109640.0,109630.0,0.28207953]
[1758940191327,2.52510587,109640.0,109630.0,0.28207953]
[1758940195265,2.34266766,109640.0,109630.0,0.28207953]
[1758940200513,1.73124614,109640.0,109630.0,0.28207953]
[1758940200722,2.34266766,109640.0,109630.0,0.28207953]
[1758940201114,1.70401294,109640.0,109630.0,0.28207953]
[1758940201343,1.68970476,109640.0,109630.0,0.56787953]
[1758940201572,1.70401282,109640.0,109630.0,0.56787953]
[1758940201765,1.88642799,109640.0,109630.0,0.56787953]
[1758940201964,1.88642799,109640.0,109630.0,0.38544772]
[1758940202130,1.88642799,109640.0,109630.0,0.09964772]
[1758940202342,1.54642799,109640.0,109630.0,0.38544772]
[1758940202592,1.83222799,109640.0,109630.0,0.09964772]
[1758940202792,1.83222799,109640.0,109630.0,0.38544772]
[1758940203413,1.83222799,109640.0,109630.0,0.56787953]
[1758940204162,1.75106899,109640.0,109630.0,0.56787953]
[1758940204487,1.17345406,109640.0,109630.0,0.56787953]
[1758940204691,1.19336482,109640.0,109630.0,0.56787953]
[1758940205265,0.88765406,109640.0,109630.0,0.56787953]
[1758940205483,1.09659182,109640.0,109630.0,0.56787953]
[1758940206102,0.53772782,109640.0,109630.0,0.56787953]
[1758940206496,0.53772782,109640.0,109630.0,0.56487953]
[1758940206912,0.87772782,109640.0,109630.0,0.57987953]
[1758940207251,0.87772782,109640.0,109630.0,0.57887953]
[1758940207674,0.53772782,109640.0,109630.0,0.58287953]
[1758940207895,0.32001882,109640.0,109630.0,0.58287953]
[1758940208114,0.51968382,109640.0,109630.0,0.58283953]
[1758940209335,0.51968382,109640.0,109630.0,0.29707953]
[1758940209740,0.51968382,109640.0,109630.0,0.58283953]
[1758940210421,0.70209899,109640.0,109630.0,0.29707953]
[1758940210630,0.70209899,109640.0,109630.0,0.57759953]
[1758940210850,0.70209899,109640.0,109630.0,0.58279953]
[1758940216479,0.70209899,109640.0,109630.0,0.58275953]
[1758940216603,0.70209899,109640.0,109630.0,0.29703953]
[1758940216823,0.70209899,109640.0,109630.0,0.40032772]
[1758940217035,0.70209899,109640.0,109630.0,0.58275953]
[1758940217918,0.70209899,109640.0,109630.0,0.29703953]
[1758940218118,0.70209899,109640.0,109630.0,0.58275953]
[1758940219837,1.00780975,109640.0,109630.0,0.40032772]
[1758940220041,1.00780975,109640.0,109630.0,0.10940772]
[1758940220243,1.34780975,109640.0,109630.0,0.39548772]
[1758940220448,1.33350169,109640.0,109630.0,0.39556772]
[1758940221024,1.33350169,109640.0,109630.0,0.39156772]
[1758940221204,1.33350169,109640.0,109630.0,0.09040772]
[1758940221404,1.33350169,109640.0,109630.0,0.25728772]
[1758940221611,1.34781,109640.0,109630.0,0.26428772]
[1758940221840,1.34781,109640.0,109630.0,0.09940772]
[1758940222048,1.34781,109640.0,109630.0,0.38568772]
[1758940222392,1.34781,109640.0,109630.0,0.38368772]
[1758940222581,1.35636848,109640.0,109630.0,0.38468772]
[1758940222782,1.35636848,109640.0,109630.0,0.37768772]
[1758940223198,1.34781,109640.0,109630.0,0.37768772]
[1758940223335,1.35636848,109640.0,109630.0,0.37768772]
[1758940223539,1.35636848,109640.0,109630.0,0.37868772]
[1758940223944,1.35636812,109640.0,109630.0,0.37868772]
[1758940224401,1.34205981,109640.0,109630.0,0.37868772]
[1758940225101,1.33350169,109640.0,109630.0,0.37868772]
[1758940227865,1.34781,109640.0,109630.0,0.37868772]
[1758940229101,1.33350169,109640.0,109630.0,0.37868772]
[1758940229662,1.61974169,109640.0,109630.0,0.37868772]
[1758940231596,1.61970169,109640.0,109630.0,0.37868772]
[1758940232023,1.63401,109640.0,109630.0,0.37868772]
[1758940232653,1.63401,109640.0,109630.0,0.38083772]
[1758940232861,1.63401,109640.0,109630.0,0.38388772]
[1758940233075,1.63397,109640.0,109630.0,0.38388772]
[1758940236978,1.34781,109640.0,109630.0,0.38388772]
[1758940237204,1.63393,109640.0,109630.0,0.38388772]
[1758940237856,1.32821924,109640.0,109630.0,0.38388772]
[1758940238094,1.63393,109640.0,109630.0,0.38388772]
[1758940240839,1.71037098,109640.0,109630.0,0.38388772]
[1758940241045,1.71033098,109640.0,109630.0,0.38388772]
[1758940242110,1.42425098,109640.0,109630.0,0.38388772]
[1758940245206,1.42425098,109640.0,109630.0,0.09760772]
[1758940245405,1.71025098,109640.0,109630.0,0.37840772]
[1758940246278,1.71881149,109640.0,109630.0,0.37840772]
[1758940248220,1.71881149,109640.0,109630.0,0.37836772]
[1758940248957,2.40667399,109640.0,109630.0,0.37832772]
[1758940249167,2.42380176,109640.0,109630.0,0.35087698]
[1758940252911,2.42380176,109640.0,109630.0,0.06495698]
[1758940256456,2.43022614,109640.0,109630.0,0.06495698]
[1758940259239,2.42380176,109640.0,109630.0,0.06495698]
[1758940267298,2.13780176,109640.0,109630.0,0.06495698]
[1758940267499,2.42392176,109640.0,109630.0,0.06495698]
[1758940267713,2.13780176,109640.0,109630.0,0.06495698]
[1758940267913,2.42392176,109640.0,109630.0,0.06495698]
[1758940268281,2.22233277,109640.0,109630.0,0.06495698]
[1758940268496,4.41091277,109640.0,109630.0,0.06495698]
[1758940269134,4.41091277,109640.0,109630.0,0.06702698]
[1758940269995,4.41091277,109640.0,109630.0,0.06495698]
[1758940270575,4.12479277,109640.0,109630.0,0.07001698]
[1758940270781,4.41095277,109640.0,109630.0,0.07001698]
[1758940271489,4.41087277,109640.0,109630.0,0.07001698]
[1758940272341,4.4108706,109640.0,109630.0,0.07001698]
[1758940272875,4.4108706,109640.0,109630.0,0.06495698]
[1758940273735,4.4108706,109640.0,109630.0,0.07001698]
[1758940277547,4.41729434,109640.0,109630.0,0.07001698]
[1758940281192,4.1247906,109640.0,109630.0,0.07001698]
[1758940281398,4.4108306,109640.0,109630.0,0.07001698]
[1758940281624,2.6932076,109640.0,109630.0,0.07001698]
[1758940281842,2.9415701,109640.0,109630.0,0.07001698]
[1758940282271,2.9416101,109640.0,109630.0,0.07001698]
[1758940282706,2.6555301,109640.0,109630.0,0.07001698]
[1758940282923,2.9416101,109640.0,109630.0,0.07001698]
[1758940283602,3.6294726,109640.0,109630.0,0.07001698]
[1758940285185,3.6294726,109640.0,109630.0,0.06495698]
[1758940285398,3.63589725,109640.0,109630.0,0.06495698]
[1758940286429,3.63589725,109640.0,109630.0,0.09240574]
[1758940287644,3.63589725,109640.0,109630.0,0.09441574]
[1758940287901,3.63589725,109640.0,109630.0,0.09746574]
[1758940289841,3.60599431,109640.0,109630.0,0.09746574]
[1758940292188,3.60599431,109640.0,109630.0,0.09441574]
[1758940300700,2.84185181,109640.0,109630.0,0.09441574]
[1758940303345,2.84185181,109640.0,109630.0,0.09742574]
[1758940304823,2.84185215,109640.0,109630.0,0.09742574]
[1758940305472,2.84181215,109640.0,109630.0,0.09742574]
[1758940305883,2.53363908,109640.0,109630.0,0.09742574]
[1758940312357,2.87347908,109640.0,109630.0,0.09742574]
[1758940313441,2.87348691,109640.0,109630.0,0.09742574]
[1758940313851,2.58760691,109640.0,109630.0,0.09742574]
[1758940314076,2.87348691,109640.0,109630.0,0.09742574]
[1758940316924,2.87344691,109640.0,109630.0,0.09742574]
[1758940317133,2.58760691,109640.0,109630.0,0.09742574]
[1758940317342,2.87344691,109640.0,109630.0,0.09742574]
[1758940317543,2.87344846,109640.0,109630.0,0.09742574]
[1758940319708,2.86702192,109640.0,109630.0,0.09742574]
[1758940320331,1.80944492,109640.0,109630.0,0.29810073]
[1758940320529,1.77204875,109640.0,109630.0,0.27985755]
[1758940320732,1.89661432,109640.0,109630.0,0.27985755]
[1758940321201,1.70563081,109640.0,109630.0,0.27985755]
[1758940322167,1.88804598,109640.0,109630.0,0.27985755]
[1758940322767,1.70563081,109640.0,109630.0,0.27985755]
[1758940323473,1.88804598,109640.0,109630.0,0.27985755]
[1758940323688,1.60220598,109640.0,109630.0,0.27985755]
[1758940325182,1.31849181,109640.0,109630.0,0.27985755]
[1758940325529,1.11799581,109640.0,109630.0,0.27985755]
[1758940325736,1.1036875,109640.0,109630.0,0.27985755]
[1758940326300,0.7636875,109640.0,109630.0,0.27985755]
[1758940327353,0.7636875,109640.0,109630.0,0.56569755]
[1758940327560,0.7636875,109640.0,109630.0,0.27985755]
[1758940327782,0.7636875,109640.0,109630.0,0.56569755]
[1758940328401,0.7636875,109640.0,109630.0,0.27985755]
[1758940328542,0.7636875,109640.0,109630.0,0.56569755]
[1758940330350,0.77799452,109640.0,109630.0,0.56569755]
[1758940334514,0.77799452,109640.0,109630.0,0.27985755]
[1758940334722,0.77799452,109640.0,109630.0,0.56569755]
[1758940336126,0.77799452,109640.0,109630.0,0.27985755]
[1758940336575,0.77799452,109640.0,109630.0,0.56569755]
[1758940337620,0.77799452,109640.0,109630.0,0.56573755]
[1758940346329,0.77799452,109640.0,109630.0,0.56565755]
[1758940347107,0.77799452,109640.0,109630.0,0.27985755]
[1758940347316,0.77799452,109640.0,109630.0,0.56565755]
[1758940349004,0.56184908,109640.0,109630.0,0.56565755]
[1758940351454,0.56184908,109640.0,109630.0,0.27985755]
[1758940351659,0.56184908,109640.0,109630.0,0.56565755]
[1758940351913,0.56184908,109640.0,109630.0,0.27985755]
[1758940352056,0.56184908,109640.0,109630.0,0.56565755]
[1758940355478,0.54310708,109640.0,109630.0,0.56565755]
[1758940357884,0.40974408,109640.0,109630.0,0.56565755]
[1758940358737,0.55559008,109640.0,109630.0,0.56565755]
[1758940362607,0.61866968,109640.0,109630.0,0.56565755]
[1758940363012,0.16015302,109640.0,109630.0,0.56565755]
[1758940363463,0.84792801,109640.0,109630.0,0.56565755]
[1758940364089,0.61866968,109640.0,109630.0,0.56565755]
[1758940365470,0.84792801,109640.0,109630.0,0.56565755]
[1758940366130,0.45851666,109640.0,109630.0,0.56565755]
[1758940366283,0.69759066,109640.0,109630.0,0.56565755]
[1758940366503,0.45851666,109640.0,109630.0,0.56565755]
[1758940366916,0.68777499,109640.0,109630.0,0.56565755]
[1758940367976,0.45851666,109640.0,109630.0,0.56565755]
[1758940369152,0.45851666,109640.0,109630.0,0.27985755]
[1758940369371,0.45851666,109640.0,109630.0,0.56565755]
[1758940375029,0.45851666,109640.0,109630.0,0.27985755]
[1758940375267,0.45851666,109640.0,109630.0,0.56565755]
[1758940384733,0.45851666,109640.0,109630.0,0.56561755]
[1758940394570,0.03691691,109650.0,109640.0,0.18241517]
[1758940394773,0.69077324,109650.0,109640.0,0.21775707]
[1758940394969,0.24356524,109650.0,109640.0,0.24104707]
[1758940395108,0.47282357,109650.0,109640.0,0.24104707]
[1758940395312,0.47282357,109650.0,109640.0,0.268489]
[1758940395811,0.47382357,109650.0,109640.0,0.268489]
[1758940396974,0.47382357,109650.0,109640.0,0.566249]
[1758940397578,0.47282357,109650.0,109640.0,0.566209]
[1758940397778,0.47282357,109650.0,109640.0,0.280489]
[1758940398006,0.47282357,109650.0,109640.0,0.569209]
[1758940398728,0.45851666,109650.0,109640.0,0.569209]
[1758940402410,0.29844165,109650.0,109640.0,0.569209]
[1758940403811,0.48084019,109650.0,109640.0,0.569209]
[1758940406369,1.88313319,109650.0,109640.0,0.569209]
[1758940408640,0.58982419,109650.0,109640.0,0.569209]
[1758940408843,0.31274734,109650.0,109640.0,0.569209]
[1758940409042,0.42243134,109650.0,109640.0,0.569209]
[1758940410131,0.60482988,109650.0,109640.0,0.283489]
[1758940410313,0.60482988,109650.0,109640.0,0.569209]
[1758940414165,0.60482988,109650.0,109640.0,0.569169]
[1758940414413,0.42243134,109650.0,109640.0,0.569169]
[1758940414819,0.58250635,109650.0,109640.0,0.569169]
[1758940415957,0.01430569,109650.0,109640.0,0.569169]
[1758940416172,0.26763502,109660.0,109650.0,0.18239854]
[1758940416376,0.47428335,109660.0,109650.0,0.21462044]
[1758940416581,0.47428335,109660.0,109650.0,0.24103044]
[1758940417043,0.47428335,109660.0,109650.0,0.26846981]
[1758940417594,0.47428335,109660.0,109650.0,0.27546981]
[1758940420707,0.03007059,109660.0,109650.0,0.27546981]
[1758940420957,0.25932892,109660.0,109650.0,0.27546981]
[1758940421334,0.25932892,109660.0,109650.0,0.37050981]
[1758940422936,0.03007059,109660.0,109650.0,0.37050981]
[1758940423143,0.25932892,109660.0,109650.0,0.37050981]
[1758940423345,0.01576669,109660.0,109650.0,0.42050981]
[1758940423548,0.02261,109670.0,109660.0,0.2625338]
[1758940423842,0.23425833,109680.0,109670.0,0.23236527]
[1758940424046,0.23425833,109680.0,109670.0,0.23749527]
[1758940424258,0.23425833,109680.0,109670.0,0.64177527]
[1758940424442,0.05297248,109680.0,109670.0,0.64177527]
[1758940424664,0.32795472,109690.0,109680.0,0.21250055]
[1758940424881,0.30534472,109690.0,109680.0,0.21763055]
[1758940425087,0.30539117,109690.0,109680.0,0.24123055]
[1758940425587,0.30539117,109690.0,109680.0,0.26866232]
[1758940426555,0.31969074,109690.0,109680.0,0.26866232]
[1758940427230,0.33098237,109690.0,109680.0,0.65134232]
[1758940427447,0.33098237,109690.0,109680.0,0.27266232]
[1758940427673,0.33098237,109690.0,109680.0,0.65330232]
[1758940428408,0.02563765,109690.0,109680.0,0.27266232]
[1758940428619,0.33098237,109690.0,109680.0,0.65330232]
[1758940432276,0.02563765,109690.0,109680.0,0.65330232]
[1758940432575,0.8166828,109690.0,109680.0,0.65330232]
[1758940432876,0.3166828,109690.0,109680.0,0.65330232]
[1758940435282,0.33098248,109690.0,109680.0,0.65330232]
[1758940436536,0.33098248,109690.0,109680.0,0.27266232]
[1758940436899,0.33098248,109690.0,109680.0,0.64809232]
[1758940437099,0.33098248,109690.0,109680.0,0.26753232]
[1758940437343,0.33098248,109690.0,109680.0,0.64809232]
[1758940437557,0.33098248,109690.0,109680.0,0.26753232]
[1758940437725,0.33098248,109690.0,109680.0,0.55309232]
[1758940438820,0.33098248,109690.0,109680.0,0.26753232]
[1758940439055,2.07630822,109690.0,109680.0,0.05503177]
[1758940439246,2.06200854,109690.0,109680.0,0.34059177]
[1758940439419,1.75666382,109690.0,109680.0,0.34059177]
[1758940440066,1.75666382,109690.0,109680.0,0.05503177]
[1758940440067,2.10518221,109690.0,109680.0,0.05503177]
[1758940440236,2.10518221,109690.0,109680.0,0.33659177]
[1758940440580,2.41052693,109690.0,109680.0,0.33859177]
[1758940442718,1.54274193,109690.0,109680.0,0.52094042]
[1758940442958,1.34451793,109690.0,109680.0,0.52094042]
[1758940443307,1.34451793,109690.0,109680.0,0.33859177]
[1758940446662,1.35881864,109690.0,109680.0,0.33859177]
[1758940448093,1.35881864,109690.0,109680.0,0.05303177]
[1758940448299,1.35881864,109690.0,109680.0,0.33859177]
[1758940452850,1.35030025,109690.0,109680.0,0.33859177]
[1758940454854,1.3588467,109690.0,109680.0,0.33859177]
[1758940455056,1.3588467,109690.0,109680.0,0.05303177]
[1758940455256,1.35884688,109690.0,109680.0,0.33859177]
[1758940461314,1.1547361,109690.0,109680.0,0.33859177]
[1758940461523,1.33706812,109690.0,109680.0,0.33859177]
[1758940461926,1.33706895,109690.0,109680.0,0.33859177]
[1758940462776,1.0533334,109690.0,109680.0,0.05303177]
[1758940463094,1.38218667,109690.0,109680.0,0.0256]
[1758940463656,1.36788596,109690.0,109680.0,0.0256]
[1758940463860,1.36788596,109690.0,109680.0,0.0236]
[1758940464265,1.37288596,109690.0,109680.0,0.0236]
[1758940464470,1.39532486,109690.0,109680.0,0.0236]
[1758940466027,1.40232486,109690.0,109680.0,0.0236]
[1758940466486,1.40432486,109690.0,109680.0,0.0236]
[1758940466692,1.37688596,109690.0,109680.0,0.0236]
[1758940466833,1.39118785,109690.0,109680.0,0.0236]
[1758940467447,1.67678785,109690.0,109680.0,0.0236]
[1758940468825,1.39118785,109690.0,109680.0,0.0236]
[1758940469251,1.67674785,109690.0,109680.0,0.0236]
[1758940469603,1.39118785,109690.0,109680.0,0.0236]
[1758940469809,1.67674785,109690.0,109680.0,0.0236]
[1758940470397,1.39118785,109690.0,109680.0,0.0236]
[1758940470561,1.67674785,109690.0,109680.0,0.0236]
[1758940470760,1.39118785,109690.0,109680.0,0.0236]
[1758940470965,1.67674785,109690.0,109680.0,0.0236]
[1758940473158,1.33674785,109690.0,109680.0,0.0236]
[1758940474632,1.33674785,109690.0,109680.0,0.02563]
[1758940474947,1.33674785,109690.0,109680.0,0.02869]
[1758940475815,1.67674785,109690.0,109680.0,0.0236]
[1758940484132,1.51661346,109690.0,109680.0,0.0236]
[1758940485355,1.23105346,109690.0,109680.0,0.02567]
[1758940485562,1.51661346,109690.0,109680.0,0.02892]
[1758940486744,1.75349089,109690.0,109680.0,0.02892]
[1758940487577,1.58290502,109690.0,109680.0,0.02892]
[1758940488631,1.58290502,109690.0,109680.0,0.02567]
[1758940489299,1.58290502,109690.0,109680.0,0.0236]
[1758940490071,1.58290502,109690.0,109680.0,0.02892]
[1758940490852,1.58290502,109690.0,109680.0,0.02567]
[1758940491050,1.58290502,109690.0,109680.0,0.02892]
[1758940496849,1.29734502,109690.0,109680.0,0.02892]
[1758940497011,1.58290502,109690.0,109680.0,0.02892]
[1758940497210,1.58285801,109690.0,109680.0,0.02892]
[1758940497838,1.58286927,109690.0,109680.0,0.02892]
[1758940501614,1.29730927,109690.0,109680.0,0.02892]
[1758940501790,1.58286927,109690.0,109680.0,0.02892]
[1758940503685,0.72819574,109690.0,109680.0,0.21126865]
[1758940503928,1.04467647,109690.0,109680.0,0.21126865]
[1758940504680,1.04267647,109690.0,109680.0,0.21126865]
[1758940505051,1.03567647,109690.0,109680.0,0.21126865]
[1758940505314,1.03667647,109690.0,109680.0,0.21126865]
[1758940508362,1.02811351,109690.0,109680.0,0.21126865]
[1758940509130,0.616653,109690.0,109680.0,0.21126865]
[1758940509353,0.69614198,109690.0,109680.0,0.21126865]
[1758940509642,0.58129698,109690.0,109680.0,0.21126865]
[1758940510373,0.68641798,109690.0,109680.0,0.21126865]
[1758940510593,0.68660298,109690.0,109680.0,0.21226865]
[1758940510797,0.68660298,109690.0,109680.0,0.21726865]
[1758940510995,0.69387698,109690.0,109680.0,0.21726865]
[1758940512419,0.69387698,109690.0,109680.0,0.50278865]
[1758940515053,0.34270849,109690.0,109680.0,0.50278865]
[1758940516492,0.36302161,109690.0,109680.0,0.50278865]
[1758940518092,0.36302161,109690.0,109680.0,0.21726865]
[1758940518271,0.36302161,109690.0,109680.0,0.50274865]
[1758940519796,0.9321501,109690.0,109680.0,0.50274865]
[1758940524098,0.93169654,109690.0,109680.0,0.50274865]
[1758940524833,0.9321501,109690.0,109680.0,0.50274865]
[1758940526993,0.9321501,109690.0,109680.0,0.53018371]
[1758940529089,0.93197334,109690.0,109680.0,0.53018371]
[1758940532228,0.93197334,109690.0,109680.0,0.24470371]
[1758940532437,0.93197334,109690.0,109680.0,0.53014371]
[1758940533957,0.93197334,109690.0,109680.0,0.24470371]
[1758940534112,0.93197334,109690.0,109680.0,0.53014371]
[1758940546629,0.77929166,109690.0,109680.0,0.53014371]
[1758940547424,0.96162368,109690.0,109680.0,0.53010371]
[1758940547626,0.77929166,109690.0,109680.0,0.53010371]
[1758940548553,0.57303621,109690.0,109680.0,0.53010371]
[1758940548818,0.55982054,109690.0,109680.0,0.53010371]
[1758940550083,0.59724475,109690.0,109680.0,0.53010371]
[1758940559995,0.77957677,109690.0,109680.0,0.53010371]
[1758940560605,0.59724475,109690.0,109680.0,0.53010371]
[1758940562602,0.37852525,109690.0,109680.0,0.53010371]
[1758940562835,0.49084782,109690.0,109680.0,0.53010371]
[1758940563040,0.34282275,109690.0,109680.0,0.53010371]
[1758940563226,0.75898575,109690.0,109680.0,0.53010371]
[1758940566579,0.60546075,109690.0,109680.0,0.53010371]
[1758940566788,0.57738975,109690.0,109680.0,0.53010371]